bitfinex-derivatives/quotes_ETHF0:USTF0_20250928
["timestamp","ask_amount","ask_price","bid_price","bid_amount"]
[1759028789089,5.21592681,4004.9,4004.8,0.00202613]
[1759028791481,4.95792681,4004.9,4004.8,0.53632613]
[1759028791791,5.20792681,4004.9,4004.8,0.53632613]
[1759028794392,5.20792681,4004.9,4004.8,0.00202613]
[1759028797396,3.74433681,4004.9,4004.8,1.19452613]
[1759028797587,3.74433681,4004.9,4004.8,6.19452613]
[1759028797792,3.2078,4005.4,4005.3,1.19245]
[1759028798093,3.74447425,4005.4,4005.3,1.19245]
[1759028800087,0.98232,4005.6,4005.5,1.31573]
[1759028800392,1.06938362,4005.6,4005.5,1.31573]
[1759028803494,1.28668362,4005.6,4005.5,0.5343]
[1759028803702,1.19966,4005.2,4005.1,0.25]
[1759028803998,1.19966,4005.2,4005.1,0.5611]
[1759028804296,1.19966,4005.2,4005.1,0.7843]
[1759028804686,1.19966,4005.2,4005.1,0.9933]
[1759028805091,0.7505,4005.2,4005.1,0.9933]
[1759028805302,0.3139,4005.2,4005.1,0.9933]
[1759028805494,3.4271,4005.4,4005.3,0.7433]
[1759028805699,3.741,4005.4,4005.3,0.7433]
[1759028807401,0.5332,4005.4,4005.3,0.7433]
[1759028810203,0.5332,4005.4,4005.3,1.87791288]
[1759028810204,0.2193,4005.4,4005.3,1.87791288]
[1759028810496,0.98232,4005.6,4005.5,0.8666]
[1759028810701,1.73522657,4005.6,4005.5,0.8666]
[1759028811402,1.19962,4005.6,4005.5,1.31572]
[1759028812598,1.19962,4005.6,4005.5,0.8666]
[1759028815303,1.19962,4005.6,4005.5,0.7433]
[1759028815711,1.19962,4005.6,4005.5,1.19243]
[1759028816312,1.73522081,4005.6,4005.5,1.19243]
[1759028817213,1.73522081,4005.6,4005.5,0.7433]
[1759028820515,1.73522081,4005.6,4005.5,0.5343]
[1759028821412,1.73522081,4005.6,4005.5,0.98343]
[1759028824016,1.73522081,4005.6,4005.5,0.5343]
[1759028839925,1.19962,4005.6,4005.5,0.5343]
[1759028840118,1.73728073,4005.6,4005.5,0.5343]
[1759028847327,1.34298,4005.0,4004.8,0.00202613]
[1759028847629,1.29836073,4004.9,4004.8,0.00202613]
[1759028848126,1.54836073,4004.9,4004.8,0.00202613]
[1759028848324,2.9620161,4004.9,4004.8,0.00202613]
[1759028850033,2.96115964,4004.9,4004.8,0.00202613]
[1759028850728,1.21001,4003.9,4003.8,3.4331]
[1759028850928,1.21001,4003.9,4003.8,0.2253]
[1759028851135,1.746675,4003.9,4003.8,0.2253]
[1759028851333,1.746675,4003.9,4003.8,0.5599]
[1759028851530,1.746675,4003.9,4003.3,3.2078]
[1759028851531,1.084865,4003.9,4003.3,3.2078]
[1759028851724,1.21005,4003.5,4003.4,0.3346]
[1759028852031,0.7607,4003.4,4003.3,3.77034782]
[1759028852629,0.7607,4003.4,4003.3,3.97614782]
[1759028852835,3.20957769,4003.9,4003.3,3.97614782]
[1759028852836,0.5487,4003.7,4003.6,0.4311]
[1759028853036,1.29662757,4003.7,4003.6,0.7657]
[1759028853230,3.20957769,4003.9,4003.7,0.3346]
[1759028853537,3.20957769,4003.9,4003.8,2.17935537]
[1759028853738,3.42207769,4003.9,4003.8,2.17935537]
[1759028853931,0.55047769,4003.9,4003.8,2.17935537]
[1759028854330,0.00177769,4003.9,4003.8,2.17935537]
[1759028864148,0.66358769,4003.9,4003.8,1.21502]
[1759028864341,0.99978769,4003.9,4003.8,1.21502]
[1759028864648,0.66358769,4003.9,4003.8,1.21502]
[1759028865150,0.00177769,4003.9,4003.8,1.21502]
[1759028865650,0.45108769,4003.9,4003.8,1.21502]
[1759028868648,0.66358769,4003.9,4003.8,1.21502]
[1759028868951,0.66358769,4003.9,4003.8,4.42282]
[1759028869853,0.55047769,4003.9,4003.8,3.9735]
[1759028872457,0.76247769,4003.9,4003.8,3.9735]
[1759028874659,0.76247769,4003.9,4003.8,4.42282]
[1759028876656,0.42627769,4003.9,4003.8,4.42282]
[1759028876857,0.21427769,4003.9,4003.8,4.42282]
[1759028877449,0.75352114,4003.9,4003.8,4.42282]
[1759028879862,0.54102114,4003.9,4003.8,4.42282]
[1759028880359,0.75152114,4003.9,4003.8,4.42282]
[1759028880962,1.07962114,4003.9,4003.8,4.42282]
[1759028881463,0.75152114,4003.9,4003.8,4.42282]
[1759028883659,0.54102114,4003.9,4003.8,4.42282]
[1759028884069,0.00177769,4003.9,4003.8,4.42282]
[1759028886264,0.76377769,4003.9,4003.8,4.67282]
[1759028886463,1.30345849,4003.9,4003.8,4.67282]
[1759028886872,0.54145849,4003.9,4003.8,4.67282]
[1759028887073,0.00177769,4003.9,4003.8,4.67282]
[1759028887567,0.54145868,4003.9,4003.8,4.67282]
[1759028888471,0.00177769,4003.9,4003.8,4.67282]
[1759028892375,4.40989,4004.9,4004.8,0.7876]
[1759028892674,4.94945503,4004.9,4004.8,0.7876]
[1759028893276,4.95141698,4004.9,4004.8,0.7876]
[1759028893773,0.7654,4004.0,4003.7,0.44932]
[1759028893981,0.7529,4003.8,4003.7,0.67522]
[1759028894276,1.29251044,4003.8,4003.7,1.48792]
[1759028894573,1.29251044,4003.8,4003.7,0.8149]
[1759028895675,1.29251044,4003.8,4003.7,0.251]
[1759028896067,1.29251044,4003.8,4003.7,0.7876]
[1759028896268,0.53961044,4003.8,4003.7,1.0386]
[1759028896474,3.2078,4003.9,4003.8,1.23692]
[1759028896670,3.2078,4003.9,4003.8,2.37241358]
[1759028901579,0.3161,4004.4,4004.3,0.44926]
[1759028901877,1.29221197,4004.4,4004.3,1.48786]
[1759028909588,0.53931197,4004.4,4004.3,1.48786]
[1759028909981,3.2078,4004.6,4004.5,0.57244]
[1759028910185,3.74699388,4004.6,4004.5,2.47963358]
[1759028910581,0.53919388,4004.6,4004.5,2.47963358]
[1759028910780,0.00196195,4004.9,4004.8,0.8895]
[1759028910983,0.00196195,4004.9,4004.8,2.60739358]
[1759028910984,0.54104346,4004.9,4004.8,2.60739358]
[1759028913495,0.75964346,4004.9,4004.8,2.60739358]
[1759028915282,0.54104346,4004.9,4004.8,2.60739358]
[1759028915488,0.00196195,4004.9,4004.8,2.60739358]
[1759028916392,0.00196195,4004.9,4004.8,2.80954172]
[1759028918100,0.00196195,4004.9,4004.8,2.60739358]
[1759028918702,0.00196195,4004.9,4004.8,2.80841066]
[1759028918998,0.00196195,4004.9,4004.8,2.60739358]
[1759028919295,0.00196195,4004.9,4004.8,2.81096073]
[1759028922398,0.00196195,4004.9,4004.8,2.60739358]
[1759028923496,0.75606195,4004.9,4004.8,1.2209]
[1759028923706,0.75606195,4004.9,4004.8,1.4719]
[1759028924695,0.22056195,4004.9,4004.8,1.4719]
[1759028928394,0.00196195,4004.9,4004.8,1.4719]
[1759028932405,3.2078,4006.0,4005.9,1.22078]
[1759028932699,3.7464,4006.0,4005.9,2.60727358]
[1759028933208,3.74936119,4006.0,4005.9,2.60727358]
[1759028933597,3.42936119,4006.0,4005.9,2.60727358]
[1759028933797,3.21076119,4006.0,4005.9,2.60727358]
[1759028935598,3.43536119,4006.0,4005.9,2.60727358]
[1759028935908,3.77596119,4006.0,4005.9,2.60727358]
[1759028938009,4.00126119,4006.0,4005.9,2.60727358]
[1759028938511,0.79346119,4006.0,4005.9,2.60727358]
[1759028946815,0.00296119,4006.0,4005.9,2.60727358]
[1759028950819,0.52816119,4006.0,4005.9,2.60727358]
[1759028951118,0.21956119,4006.0,4005.9,2.60727358]
[1759028951718,0.00296119,4006.0,4005.9,2.60727358]
[1759028954630,0.00296119,4006.0,4005.9,2.88472593]
[1759028960325,0.52816119,4006.0,4005.9,2.88372593]
[1759028960526,0.87676119,4006.0,4005.9,1.25418]
[1759028960725,0.7392,4005.8,4005.7,0.4491]
[1759028961022,1.27621609,4005.8,4005.7,1.4678]
[1759028961222,1.27621609,4005.8,4005.7,1.2178]
[1759028961524,1.27621609,4005.8,4005.7,1.4678]
[1759028972331,1.27621609,4005.8,4005.7,1.2178]
[1759028972734,1.72530609,4005.8,4005.7,1.0187]
[1759028973032,1.72530609,4005.8,4005.7,1.4678]
[1759028973226,1.72530609,4005.8,4005.7,1.0187]
[1759028973823,0.2135,4005.6,4005.5,0.3153]
[1759028974028,1.20124,4005.4,4005.3,0.44915]
[1759028974230,1.73846155,4005.4,4005.3,1.01445]
[1759028974434,1.73846155,4005.4,4005.3,1.22485]
[1759028974627,1.28932155,4005.4,4005.3,1.22485]
[1759028975527,1.28932155,4005.4,4005.3,1.44415]
[1759028976435,1.28907507,4005.4,4005.3,1.44415]
[1759028977332,0.7521,4005.4,4005.3,1.44415]
[1759028977532,0.428,4005.4,4005.3,1.44415]
[1759028977731,0.2135,4005.4,4005.3,1.44415]
[1759028985331,0.44919,4004.9,4004.8,3.2078]
[1759028985536,1.73831638,4004.9,4004.8,0.5653]
[1759028986442,1.73831638,4004.9,4004.5,0.2104]
[1759028986443,0.87723,4004.6,4004.5,0.2104]
[1759028986740,1.20133,4004.6,4004.5,0.2104]
[1759028986931,1.73819678,4004.6,4004.5,0.4604]
[1759028987532,1.73819678,4004.6,4004.5,0.7757]
[1759028987933,1.28896678,4004.6,4004.5,0.7757]
[1759028988133,0.7521,4004.6,4004.5,0.995]
[1759028991544,0.7521,4004.6,4004.5,1.1271]
[1759028992860,0.7521,4004.6,4004.5,0.8771]
[1759028993143,0.7521,4004.6,4004.5,1.1271]
[1759028995847,0.7521,4004.6,4004.5,0.995]
[1759028999544,0.7521,4004.6,4004.5,1.131]
[1759029000343,0.7521,4004.6,4004.5,1.58024]
[1759029001652,1.20133,4004.6,4004.5,1.58024]
[1759029001853,0.7521,4004.6,4004.5,1.58024]
[1759029003654,0.2135,4004.6,4004.5,1.58024]
[1759029005854,0.2135,4004.6,4004.5,1.33024]
[1759029006049,0.2135,4004.6,4004.5,1.58024]
[1759029009756,0.66273,4004.6,4004.5,1.58024]
[1759029009942,1.21183,4004.6,4004.5,0.7757]
[1759029010142,0.2084,4004.2,4004.1,3.65707]
[1759029010456,0.7557,4004.2,4004.1,1.44247]
[1759029013658,1.20497,4004.2,4004.1,1.44247]
[1759029014560,0.7557,4004.2,4004.1,1.44247]
[1759029015257,1.29328881,4004.2,4004.1,1.44247]
[1759029016751,1.29328881,4004.2,4004.1,2.57749901]
[1759029017660,1.74255881,4004.2,4004.1,2.57750901]
[1759029017853,1.29328881,4004.2,4004.1,2.57750901]
[1759029018957,1.29328881,4004.2,4004.1,2.32750901]
[1759029019164,1.29328881,4004.2,4004.1,1.44248]
[1759029020668,0.95248881,4004.2,4004.1,1.44248]
[1759029021373,1.74255881,4004.2,4004.1,1.44248]
[1759029024175,1.29328881,4004.2,4004.1,1.44248]
[1759029024375,1.74255881,4004.2,4004.1,1.44248]
[1759029024873,1.74255881,4004.2,4004.1,1.19248]
[1759029025175,1.74255881,4004.2,4004.1,1.21838]
[1759029025375,1.74255881,4004.2,4004.1,1.44438]
[1759029029785,0.53758881,4004.2,4004.1,1.44438]
[1759029030075,3.2078,4004.5,4004.4,0.90005]
[1759029030284,3.74527907,4004.5,4004.4,2.59667901]
[1759029033176,3.96407907,4004.5,4004.4,2.59667901]
[1759029037386,4.27907907,4004.5,4004.4,2.59667901]
[1759029038487,11.22586,4006.4,4004.4,2.59667901]
[1759029038488,3.2078,4005.0,4004.9,0.9]
[1759029038685,3.74583134,4005.0,4004.9,2.59662901]
[1759029039885,0.53803134,4005.0,4004.9,2.59662901]
[1759029040283,0.2188,4005.0,4004.9,2.59662901]
[1759029042188,0.5338,4005.0,4004.9,2.59662901]
[1759029043889,0.2188,4005.0,4004.9,2.59662901]
[1759029048092,1.20648,4005.0,4004.9,2.14742901]
[1759029048394,1.74349065,4005.0,4004.9,2.59662901]
[1759029048984,0.4423,4004.4,4004.3,2.03508901]
[1759029049294,0.7573,4004.4,4004.3,0.90006]
[1759029049589,0.7573,4004.4,4004.3,1.46166]
[1759029054392,0.44922,4004.7,4004.6,0.44923]
[1759029054693,1.20066179,4004.7,4004.6,1.45933]
[1759029054895,1.75196179,4004.7,4004.6,1.45933]
[1759029055597,1.30274179,4004.7,4004.6,1.45933]
[1759029057788,0.53714179,4004.7,4004.6,1.45933]
[1759029057992,3.2078,4005.0,4004.6,1.45933]
[1759029057993,3.2078,4005.0,4004.9,1.2093]
[1759029058198,3.2078,4005.0,4004.9,2.59432901]
[1759029060893,3.2078,4005.5,4005.1,1.12293]
[1759029061095,3.2078,4005.5,4005.4,1.44792901]
[1759029061400,3.74518715,4005.5,4005.4,2.14512901]
[1759029061796,0.53738715,4005.5,4005.4,2.14512901]
[1759029061995,0.3269,4005.8,4005.7,0.44911]
[1759029062203,0.5412,4005.8,4005.7,2.59423901]
[1759029062401,1.07843212,4005.8,4005.7,2.59423901]
[1759029063395,0.75153212,4005.8,4005.7,2.59423901]
[1759029063601,0.2143,4005.8,4005.7,2.59423901]
[1759029064112,3.42506119,4006.0,4005.9,1.20918]
[1759029064307,3.96196402,4006.0,4005.9,1.45918]
[1759029065398,3.21076119,4006.0,4005.9,1.45918]
[1759029065597,3.21076119,4006.0,4005.9,2.59420901]
[1759029067404,0.00296119,4006.0,4005.9,2.59420901]
[1759029076617,0.00296119,4006.0,4005.9,2.87215734]
[1759029088321,1.20689,4005.8,4005.7,3.2078]
[1759029088515,0.561,4005.5,4005.2,3.2078]
[1759029088822,0.7578,4005.4,4005.3,0.92515]
[1759029090325,0.7578,4005.4,4005.3,1.23825]
[1759029090824,0.5332,4005.4,4005.3,1.44545]
[1759029091027,0.7578,4005.8,4005.7,1.1954]
[1759029091225,1.29456862,4005.8,4005.7,1.4454]
[1759029091822,3.21076119,4006.0,4005.9,0.88228]
[1759029092025,4.28083616,4006.0,4005.9,1.44538]
[1759029093827,1.07303616,4006.0,4005.9,1.44538]
[1759029103828,0.00296119,4006.0,4005.9,1.44538]
[1759029136555,0.00296119,4006.0,4005.9,2.57899071]
[1759029136852,0.55586119,4006.0,4005.9,2.57899071]
[1759029137354,0.78316119,4006.0,4005.9,2.57899071]
[1759029137551,0.78316119,4006.0,4005.9,1.19538]
[1759029137753,0.91196119,4006.0,4005.9,0.69908]
[1759029139655,0.91196119,4006.0,4005.9,0.92128]
[1759029139855,0.91196119,4006.0,4005.9,1.24858]
[1759029143154,0.91196119,4006.0,4005.9,1.47328]
[1759029145158,0.78316119,4006.0,4005.9,1.47328]
[1759029149158,0.5689,4006.5,4006.4,0.87593]
[1759029149362,0.97755875,4006.5,4006.4,2.58094071]
[1759029149750,1.31465875,4006.5,4006.4,2.58094071]
[1759029150158,1.31676587,4006.5,4006.4,2.58337334]
[1759029150759,1.45206587,4006.5,4006.4,2.13434334]
[1759029154361,1.45206587,4006.5,4006.4,2.58337334]
[1759029156061,1.45206587,4006.5,4006.4,2.26197334]
[1759029156263,1.90108587,4006.5,4006.4,1.83507334]
[1759029156865,1.90108587,4006.5,4006.4,0.25243263]
[1759029157065,1.36362712,4006.5,4006.4,0.25243263]
[1759029158365,1.36362712,4006.5,4006.4,0.45146263]
[1759029158662,1.36362712,4006.5,4006.4,0.25243263]
[1759029158867,9.57142712,4006.5,4006.4,0.25243263]
[1759029159362,10.10829064,4006.5,4006.4,0.25243263]
[1759029159558,5.10829064,4006.5,4006.4,0.25243263]
[1759029160364,4.57142712,4006.5,4006.4,0.25243263]
[1759029161359,5.10829793,4006.5,4006.4,0.25243263]
[1759029165566,5.10829793,4006.5,4006.4,0.70146263]
[1759029169270,5.10829793,4006.5,4006.4,0.00243263]
[1759029178382,5.10829793,4006.5,4006.4,0.45146263]
[1759029178588,4.65927793,4006.5,4006.4,1.58507334]
[1759029179185,5.10829793,4006.5,4006.4,1.58507334]
[1759029181088,5.10829793,4006.5,4006.4,1.13604334]
[1759029184594,5.10829793,4006.5,4006.4,0.00243263]
[1759029185592,5.10829793,4006.5,4006.4,0.45146263]
[1759029187094,4.65927793,4006.5,4006.4,1.80507334]
[1759029187293,4.65927793,4006.5,4006.4,2.34357334]
[1759029187482,1.08837793,4006.5,4006.4,2.34357334]
[1759029187683,0.75127793,4006.5,4006.4,2.34357334]
[1759029187990,1.07197793,4006.5,4006.4,2.34357334]
[1759029188395,1.73139793,4006.5,4006.4,1.89454334]
[1759029188595,1.86159793,4006.5,4006.4,2.34357334]
[1759029189301,1.41257793,4006.5,4006.4,2.34357334]
[1759029193198,1.28237793,4006.5,4006.4,2.34357334]
[1759029194099,1.40847793,4006.5,4006.4,2.59357334]
[1759029194401,1.85749793,4006.5,4006.4,2.59357334]
[1759029195503,1.40847793,4006.5,4006.4,2.59357334]
[1759029198003,1.28237793,4006.5,4006.4,2.59357334]
[1759029198605,1.28237793,4006.5,4006.4,1.45996263]
[1759029200506,1.73139793,4006.5,4006.4,1.45996263]
[1759029200698,1.85749793,4006.5,4006.4,1.45996263]
[1759029202705,1.85749793,4006.5,4006.4,0.22243263]
[1759029202901,1.85749793,4006.5,4006.4,0.25243263]
[1759029204008,5.06529793,4006.5,4006.4,0.25243263]
[1759029204605,5.06529793,4006.5,4006.4,0.00243263]
[1759029205609,0.1338,4006.0,4005.4,0.2225]
[1759029205902,0.53706904,4005.9,4005.7,0.44911]
[1759029206102,0.53706904,4005.9,4005.8,2.19606902]
[1759029206301,0.85586904,4005.9,4005.8,2.19606902]
[1759029206497,1.07506904,4005.9,4005.8,2.19606902]
[1759029206704,1.07506904,4005.9,4005.8,2.19790334]
[1759029207107,0.53706904,4005.9,4005.8,2.19790334]
[1759029207309,0.538,4006.0,4005.9,0.89118]
[1759029207508,1.07472736,4006.0,4005.9,1.14218]
[1759029208010,1.07472736,4006.0,4005.9,1.0342]
[1759029208305,1.28952736,4006.0,4005.9,1.0342]
[1759029211306,0.7528,4006.0,4005.9,1.0342]
[1759029211609,1.28922003,4006.0,4005.9,1.0342]
[1759029215913,1.07442003,4006.0,4005.9,1.0342]
[1759029216510,1.07442003,4006.0,4005.9,1.48328]
[1759029216916,1.52349003,4006.0,4005.9,1.48328]
[1759029217714,1.52349003,4006.0,4005.9,1.0342]
[1759029218417,1.73829003,4006.0,4005.9,1.0342]
[1759029221014,0.53642003,4006.0,4005.9,1.0342]
[1759029221215,0.53642003,4006.0,4005.9,1.48328]
[1759029221418,0.3188,4006.2,4006.1,0.4421]
[1759029221712,1.52492951,4006.2,4006.1,2.44706902]
[1759029222311,1.52495459,4006.2,4006.1,2.44706902]
[1759029226316,1.07590459,4006.2,4006.1,2.44706902]
[1759029226712,1.52495459,4006.2,4006.1,2.44706902]
[1759029231324,1.73975459,4006.2,4006.1,1.97356902]
[1759029231523,1.73975459,4006.2,4005.8,0.78503432]
[1759029231524,0.538,4005.9,4005.8,0.78503432]
[1759029231725,0.7528,4005.9,4005.8,1.03503432]
[1759029237832,0.7528,4005.9,4005.8,1.48412432]
[1759029241133,0.538,4005.9,4005.8,1.48412432]
[1759029241332,0.44908,4006.0,4005.8,1.48412432]
[1759029241527,0.99008,4006.0,4005.9,0.3255]
[1759029241833,1.21598,4006.0,4005.9,0.7599]
[1759029242222,0.7669,4006.0,4005.9,1.20898]
[1759029242525,0.89510712,4006.5,4006.4,0.5368]
[1759029242735,1.4336263,4006.5,4006.4,0.7868]
[1759029243432,1.8826463,4006.5,4006.4,0.7868]
[1759029246936,1.8826463,4006.5,4006.4,0.4613]
[1759029250440,1.8826463,4006.5,4006.4,0.25]
[1759029250639,1.8826463,4006.5,4006.4,0.4658]
[1759029250837,1.8826463,4006.5,4006.4,0.9921]
[1759029257647,1.8826463,4006.5,4006.4,0.6814]
[1759029257847,1.8826463,4006.5,4006.4,0.4658]
[1759029260250,1.8826463,4006.5,4006.4,0.7765]
[1759029264457,1.88230127,4006.5,4006.4,0.4658]
[1759029264952,1.88230127,4006.5,4006.4,0.7761]
[1759029265753,1.88230127,4006.5,4006.4,0.4658]
[1759029270259,1.88230127,4006.5,4006.4,0.25]
[1759029278764,0.90092,4006.4,4006.3,1.34422752]
[1759029279066,1.75859415,4006.4,4006.3,1.90452752]
[1759029279457,1.75859415,4006.4,4006.3,0.25]
[1759029283665,1.75859415,4006.4,4006.3,0.4604]
[1759029283864,1.30957415,4006.4,4006.3,1.43184]
[1759029284161,0.00210712,4006.5,4006.3,1.43184]
[1759029284467,0.54720712,4006.5,4006.4,0.7328]
[1759029284670,1.08480082,4006.5,4006.4,0.7328]
[1759029285368,0.54720712,4006.5,4006.4,0.7328]
[1759029286465,0.00210712,4006.5,4006.4,6.86662752]
[1759029286663,3.2078,4007.1,4007.0,0.7328]
[1759029286664,0.5451,4007.1,4007.0,0.7328]
[1759029286966,0.5451,4007.1,4007.0,2.11662752]
[1759029287563,0.5480077,4007.1,4007.0,2.56558752]
[1759029294068,0.7743077,4007.1,4007.0,2.11662752]
[1759029295567,1.2232577,4007.1,4007.0,2.11662752]
[1759029296471,1.2232577,4007.1,4007.0,2.56558752]
[1759029296974,1.2232577,4007.1,4007.0,2.11662752]
[1759029297277,1.2232577,4007.1,4007.0,2.56558752]
[1759029298970,1.2232577,4007.1,4007.0,0.5207]
[1759029299167,1.34762,4006.5,4006.4,4.55062752]
[1759029299472,1.34762,4006.5,4006.4,3.4578]
[1759029300172,0.8986,4006.5,4006.4,3.4578]
[1759029300377,0.7687,4006.5,4006.4,4.187]
[1759029300672,1.01466,4007.0,4006.9,0.209]
[1759029300874,1.88340445,4007.0,4006.9,1.90502752]
[1759029301669,1.88340445,4007.0,4006.9,2.11302752]
[1759029302479,1.43444445,4007.0,4006.9,2.11302752]
[1759029302775,1.30454445,4007.0,4006.9,2.11302752]
[1759029304569,3.2107077,4007.1,4007.0,0.57606]
[1759029304766,0.0029077,4007.1,4007.0,1.30526]
[1759029320682,0.0029077,4007.1,4007.0,2.96722898]
[1759029320683,0.3275077,4007.1,4007.0,2.96722898]
[1759029320886,0.5368077,4007.1,4007.0,2.96722898]
[1759029321276,0.0029077,4007.1,4007.0,2.96722898]
[1759029327086,0.5551,4006.5,4006.3,3.5156]
[1759029327386,0.7533,4006.4,4006.3,3.7235]
[1759029327586,0.7533,4006.4,4006.3,3.9745]
[1759029327987,0.7533,4006.4,4006.3,4.194]
[1759029337195,0.5445,4006.4,4006.3,4.194]
[1759029340394,0.5445,4006.4,4006.3,4.64304]
[1759029341395,3.2078,4006.9,4006.7,0.7352]
[1759029341396,0.5445,4006.8,4006.7,0.7352]
[1759029341692,1.20229,4006.8,4006.7,0.9852]
[1759029345097,1.12236,4007.2,4006.7,0.9852]
[1759029345098,0.8775,4008.4,4008.3,0.7352]
[1759029345395,3.36477483,4009.3,4008.3,0.7352]
[1759029345396,3.3342,4009.5,4008.8,0.4274]
[1759029345602,3.6365,4009.5,4009.4,0.5157]
[1759029345800,4.17164906,4009.5,4009.4,0.7667]
[1759029346004,0.43169673,4009.5,4009.4,0.76947284]
[1759029346204,0.43169673,4009.5,4009.4,4.19677284]
[1759029346410,0.22289673,4009.5,4009.4,4.19677284]
[1759029346996,1.79548885,4011.6,4011.4,0.3078]
[1759029347202,0.1443,4011.6,4011.5,5.73836898]
[1759029347499,0.1443,4011.6,4011.5,6.18681898]
[1759029347700,0.2886,4012.1,4012.0,0.8676]
[1759029347903,0.2904246,4012.1,4012.0,1.1196]
[1759029348106,0.7388146,4012.1,4012.0,1.1196]
[1759029349218,0.82724,4011.6,4011.5,3.648]
[1759029349500,0.44848,4011.3,4011.2,0.5157]
[1759029349707,0.73708,4011.3,4011.2,0.7677]
[1759029350800,0.73708,4011.3,4011.2,0.5157]
[1759029351001,0.73708,4011.3,4011.2,0.7677]
[1759029351805,0.73708,4011.3,4011.2,0.5157]
[1759029352006,0.73708,4011.3,4011.2,0.7677]
[1759029352400,0.73708,4011.3,4011.2,0.5157]
[1759029352606,0.44856,4010.6,4010.5,3.3402]
[1759029352907,0.44856,4010.6,4010.5,4.3274]
[1759029355101,0.58996,4010.6,4010.5,4.3274]
[1759029355304,0.73136,4010.6,4010.5,4.0754]
[1759029355608,0.73136,4010.6,4010.5,4.3274]
[1759029356310,0.58996,4010.6,4010.5,4.3274]
[1759029357798,0.44856,4010.6,4010.5,4.3274]
[1759029358602,0.44856,4010.6,4010.5,4.0754]
[1759029358804,0.44856,4010.6,4010.5,4.3274]
[1759029372910,7.37062898,4010.6,4010.5,3.24064]
[1759029373114,7.37062898,4010.6,4010.0,3.7703]
[1759029373115,1.20081,4010.1,4010.0,3.7703]
[1759029373316,1.20081,4010.1,4010.0,4.0223]
[1759029374414,1.72774669,4010.1,4010.0,4.0223]
[1759029375224,1.72774669,4010.1,4010.0,3.9549]
[1759029375414,1.72774669,4010.1,4010.0,4.2069]
[1759029376317,1.72774669,4010.1,4010.0,0.569]
[1759029376517,1.72774669,4010.1,4010.0,0.7925]
[1759029378020,1.72774669,4010.1,4010.0,0.5405]
[1759029380921,1.20087,4009.6,4009.5,3.2078]
[1759029381115,1.20087,4009.6,4009.4,2.84e-06]
[1759029381116,0.8775,4009.5,4009.4,2.84e-06]
[1759029381326,1.40443669,4009.5,4009.4,2.84e-06]
[1759029381518,42.20443669,4009.5,4009.4,2.84e-06]
[1759029384524,1.27913669,4009.5,4009.4,0.76690284]
[1759029384728,0.95093669,4009.5,4009.4,0.76690284]
[1759029387333,1.26253669,4009.5,4009.4,0.76690284]
[1759029387726,0.7356,4009.5,4009.4,0.76690284]
[1759029387921,1.2629737,4009.5,4009.4,0.76690284]
[1759029389621,0.9513737,4009.5,4009.4,0.76690284]
[1759029392833,1.4000537,4009.5,4009.4,0.76690284]
[1759029393129,1.7116537,4009.5,4009.4,0.76690284]
[1759029399438,2.66036988,4009.5,4009.4,2.84e-06]
[1759029400539,1.5283537,4009.5,4009.4,2.84e-06]
[1759029401633,1.4000537,4009.5,4009.4,0.76690284]
[1759029402245,1.7116537,4009.5,4009.4,0.76690284]
[1759029402446,1.1950537,4009.5,4009.4,0.76690284]
[1759029403145,1.5066537,4009.5,4009.4,0.76690284]
[1759029404840,1.7314537,4009.5,4009.4,0.76690284]
[1759029405641,1.8597537,4009.5,4009.4,2.84e-06]
[1759029405849,1.5481537,4009.5,4009.4,2.84e-06]
[1759029408351,6.7991537,4009.5,4009.4,2.84e-06]
[1759029409346,47.5991537,4009.5,4009.4,2.84e-06]
[1759029409951,6.7991537,4009.5,4009.4,2.84e-06]
[1759029412947,47.5991537,4009.5,4009.4,2.84e-06]
[1759029429858,0.8722,4008.4,4008.3,0.5376]
[1759029430062,0.44883,4008.1,4008.0,3.3429]
[1759029430262,1.7398037,4008.1,4008.0,3.7676]
[1759029430462,2.87181988,4008.1,4008.0,3.7676]
[1759029430665,3.12281988,4008.1,4008.0,3.2078]
[1759029430860,3.12504905,4008.1,4008.0,3.21045853]
[1759029432563,3.12504905,4008.1,4008.0,0.00265853]
[1759029434767,1.21255,4007.1,4007.0,3.5387]
[1759029434972,2.87193988,4007.1,4007.0,3.7454]
[1759029435673,2.87193988,4007.1,4007.0,3.74777428]
[1759029436270,2.87193988,4007.1,4007.0,3.21017428]
[1759029437070,2.87193988,4007.1,4007.0,3.74777428]
[1759029437369,3.12293988,4007.1,4007.0,3.21017428]
[1759029437566,3.12293988,4007.1,4007.0,3.74777428]
[1759029440768,3.40382709,4007.1,4007.0,3.74777428]
[1759029444283,2.87645339,4007.1,4007.0,3.74777428]
[1759029444776,2.87645339,4007.1,4007.0,3.21017428]
[1759029445180,2.87645339,4007.1,4007.0,3.52617428]
[1759029447082,2.87645339,4007.1,4007.0,3.75127428]
[1759029448883,2.87645339,4007.1,4007.0,0.54347428]
[1759029449083,3.40681477,4007.1,4007.0,0.54347428]
[1759029449883,3.40681477,4007.1,4007.0,0.00237428]
[1759029451688,2.61069339,4006.7,4006.6,0.316]
[1759029451987,3.39205477,4006.7,4006.6,0.5411]
[1759029452785,3.39205477,4006.7,4006.6,0.54401243]
[1759029453881,3.39205477,4006.7,4006.6,0.00291243]
[1759029454077,0.65756,4006.1,4006.0,0.8918]
[1759029454280,1.23716,4006.1,4006.0,0.8918]
[1759029455081,1.23716,4006.1,4006.0,0.8944733]
[1759029455281,0.90856,4006.1,4006.0,0.8944733]
[1759029456781,1.44886,4006.1,4006.0,0.8993733]
[1759029457689,1.44886,4006.1,4006.0,0.5437733]
[1759029457884,1.44886,4006.1,4006.0,0.8993733]
[1759029458491,0.70006,4006.1,4006.0,0.8993733]
[1759029459193,1.23277646,4006.1,4006.0,0.8993733]
[1759029459896,3.65678,4006.8,4006.7,0.7643]
[1759029460090,4.64901669,4006.8,4006.7,0.7643]
[1759029460387,4.97761669,4006.8,4006.7,0.7643]
[1759029460587,5.18931669,4006.8,4006.7,0.7643]
[1759029463992,5.19023464,4006.8,4006.7,0.7643]
[1759029469284,5.19023464,4006.8,4006.1,0.251]
[1759029469285,1.19785,4006.2,4006.1,0.7643]
[1759029469490,1.73150464,4006.2,4006.1,0.7643]
[1759029471798,1.73158379,4006.2,4006.1,0.7643]
[1759029481417,1.22426,4006.1,4006.0,0.0026733]